bitfinex-derivatives/quotes_BTCF0:USTF0_20250929
["timestamp","ask_amount","ask_price","bid_price","bid_amount"]
[1759163528293,0.13796293,114010.0,114000.0,1.1464429]
[1759163528587,0.05030733,114010.0,114000.0,1.1464429]
[1759163528884,0.14891827,114030.0,114020.0,0.0876479]
[1759163529083,0.21970617,114030.0,114020.0,2.3078675]
[1759163529488,0.23748063,114030.0,114020.0,2.3078675]
[1759163529687,0.23748063,114030.0,114020.0,1.5072275]
[1759163529888,0.23748063,114030.0,114020.0,2.3078675]
[1759163530080,0.23948063,114030.0,114020.0,2.3078675]
[1759163530282,0.15472273,114030.0,114020.0,2.3078675]
[1759163530683,0.15472273,114030.0,114020.0,1.5072275]
[1759163530884,0.16830273,114030.0,114020.0,2.3078675]
[1759163531086,0.12099866,114030.0,114020.0,2.3078675]
[1759163531392,0.11999866,114030.0,114020.0,2.3078675]
[1759163532192,0.11999866,114030.0,114020.0,2.3078275]
[1759163532693,0.11999866,114030.0,114020.0,1.5072275]
[1759163532990,0.11999866,114030.0,114020.0,2.3077875]
[1759163533288,0.11999866,114030.0,114020.0,1.5072275]
[1759163533485,0.11999866,114030.0,114020.0,2.3077875]
[1759163534189,0.18305211,114030.0,114020.0,2.3077875]
[1759163535486,0.18305211,114030.0,114020.0,1.5072275]
[1759163535690,0.18305211,114030.0,114020.0,2.3077475]
[1759163535986,0.08182791,114030.0,114020.0,2.3077475]
[1759163536189,0.01877446,114030.0,114020.0,2.3077475]
[1759163537485,0.03865352,114030.0,114020.0,2.3077475]
[1759163537681,0.08073188,114040.0,114020.0,2.7077475]
[1759163537887,0.06715188,114040.0,114030.0,1.9468998]
[1759163538088,0.15478438,114040.0,114030.0,1.9468998]
[1759163538284,0.10751156,114040.0,114030.0,1.49450771]
[1759163538492,0.10751156,114040.0,114030.0,2.29498771]
[1759163538788,0.10751156,114040.0,114030.0,1.94629854]
[1759163539795,0.10751156,114040.0,114030.0,1.14581854]
[1759163540281,0.11351156,114040.0,114030.0,1.94625854]
[1759163541485,0.02287906,114040.0,114030.0,2.29490771]
[1759163541690,0.11051156,114040.0,114030.0,2.29490771]
[1759163541889,0.02287906,114040.0,114030.0,2.29490771]
[1759163542993,0.11051156,114040.0,114030.0,2.29490771]
[1759163543495,0.02287906,114040.0,114030.0,2.29490771]
[1759163545289,0.11051156,114040.0,114030.0,2.29486771]
[1759163545495,0.12361156,114040.0,114030.0,1.94613854]
[1759163545889,0.12361156,114040.0,114030.0,2.29482771]
[1759163546283,0.12361156,114040.0,114030.0,1.94613854]
[1759163546795,0.12361156,114040.0,114030.0,1.14581854]
[1759163546995,0.12361156,114040.0,114030.0,1.94613854]
[1759163547693,0.12361156,114040.0,114030.0,1.14581854]
[1759163547998,0.1037325,114040.0,114030.0,1.14581854]
[1759163548192,0.12356185,114040.0,114030.0,1.94613854]
[1759163548394,0.1037325,114040.0,114030.0,1.94613854]
[1759163549100,0.0161,114040.0,114030.0,1.94613854]
[1759163550393,0.0161,114040.0,114030.0,2.29482771]
[1759163551188,0.1037325,114040.0,114030.0,1.94609854]
[1759163551388,0.12355922,114040.0,114030.0,1.94609854]
[1759163551900,0.12355922,114040.0,114030.0,2.29478771]
[1759163552298,0.12355922,114040.0,114030.0,1.94609854]
[1759163552497,0.12355922,114040.0,114030.0,1.94605854]
[1759163552995,0.02282672,114040.0,114030.0,2.29474771]
[1759163553697,0.02282672,114040.0,114030.0,1.94605854]
[1759163553897,0.02282672,114040.0,114030.0,2.29474771]
[1759163554097,0.02282672,114040.0,114030.0,1.94605854]
[1759163555295,0.02282672,114040.0,114030.0,2.29474771]
[1759163555694,0.12355922,114040.0,114030.0,1.49450771]
[1759163555895,0.12355922,114040.0,114030.0,1.94601854]
[1759163556395,0.12355922,114040.0,114030.0,2.29470771]
[1759163556591,0.12355922,114040.0,114030.0,1.14581854]
[1759163556791,0.12355922,114040.0,114030.0,1.94601854]
[1759163560200,0.03592672,114040.0,114030.0,1.94601854]
[1759163560393,0.12355922,114040.0,114030.0,1.94601854]
[1759163563711,0.12355922,114040.0,114030.0,1.14581854]
[1759163563904,0.12355922,114040.0,114030.0,1.94593854]
[1759163564302,0.14676922,114040.0,114030.0,0.4484402]
[1759163564508,0.14676922,114040.0,114030.0,1.94593854]
[1759163567703,0.54676922,114040.0,114030.0,1.14581854]
[1759163567906,0.54676922,114040.0,114030.0,1.94593854]
[1759163570805,0.12355922,114040.0,114030.0,2.29462771]
[1759163571009,0.12355922,114040.0,114030.0,1.94593854]
[1759163571213,0.20229967,114040.0,114030.0,1.94593854]
[1759163572210,0.17083204,114040.0,114030.0,1.94589854]
[1759163572706,0.17083204,114040.0,114030.0,1.14581854]
[1759163573315,0.17083204,114040.0,114030.0,1.94589854]
[1759163574215,0.17083204,114040.0,114030.0,1.14581854]
[1759163574413,0.17083204,114040.0,114030.0,1.94589854]
[1759163574813,0.17083204,114040.0,114030.0,1.14581854]
[1759163575004,0.15511164,114040.0,114030.0,1.94589854]
[1759163577217,0.15511164,114040.0,114030.0,1.14581854]
[1759163577418,0.15511164,114040.0,114030.0,1.94589854]
[1759163577717,0.20238446,114040.0,114030.0,1.94589854]
[1759163577917,0.17083204,114040.0,114030.0,1.94589854]
[1759163579920,0.17083204,114040.0,114030.0,1.14581854]
[1759163580118,0.17083204,114040.0,114030.0,1.94585854]
[1759163581217,0.12355922,114040.0,114030.0,1.94585854]
[1759163582117,0.12359922,114040.0,114030.0,1.94585854]
[1759163586030,0.12059922,114040.0,114030.0,1.94585854]
[1759163586327,0.12159922,114040.0,114030.0,1.94785854]
[1759163586523,0.03396672,114040.0,114030.0,1.94785854]
[1759163586825,0.02086672,114040.0,114030.0,1.94785854]
[1759163587127,0.01986672,114040.0,114030.0,1.95085854]
[1759163588124,0.01986672,114040.0,114030.0,1.95081854]
[1759163588323,4e-05,114040.0,114030.0,1.49950771]
[1759163588524,4e-05,114040.0,114030.0,2.29950771]
[1759163588724,0.02001915,114040.0,114030.0,2.29950771]
[1759163595728,0.13489012,114060.0,114050.0,0.0876248]
[1759163595925,0.1521571,114060.0,114050.0,2.30656314]
[1759163596132,0.20600875,114060.0,114050.0,2.30652314]
[1759163596530,0.19675158,114060.0,114050.0,2.30652314]
[1759163597131,0.20375158,114060.0,114050.0,2.30652314]
[1759163597324,0.20675158,114060.0,114050.0,2.30652314]
[1759163597522,0.20675158,114060.0,114050.0,1.50660314]
[1759163597729,0.20675158,114060.0,114050.0,2.30652314]
[1759163597926,0.16047876,114060.0,114050.0,1.50660314]
[1759163598130,0.23156344,114060.0,114050.0,2.21889834]
[1759163598733,0.23156344,114060.0,114050.0,2.30652314]
[1759163599029,0.24076537,114060.0,114050.0,2.30652314]
[1759163599231,0.24076537,114060.0,114050.0,1.50660314]
[1759163599432,0.24076537,114060.0,114050.0,2.30648314]
[1759163599635,0.24076537,114060.0,114050.0,1.50660314]
[1759163600231,0.24076537,114060.0,114050.0,1.95773669]
[1759163600432,0.24076537,114060.0,114050.0,1.15785669]
[1759163600634,0.24076537,114060.0,114050.0,1.95773669]
[1759163601429,0.26317537,114060.0,114050.0,1.52148]
[1759163601629,0.71044819,114060.0,114050.0,0.7216]
[1759163601833,1.0275356,114060.0,114050.0,0.3608]
[1759163602028,0.98026278,114060.0,114050.0,0.3608]
[1759163602532,0.69468434,114060.0,114050.0,0.3608]
[1759163607443,1.49452434,114060.0,114050.0,0.3608]
[1759163607637,1.51445845,114060.0,114050.0,0.3608]
[1759163608435,1.51445845,114060.0,114050.0,0.70943189]
[1759163608639,1.51445845,114060.0,114050.0,0.3608]
[1759163609535,0.71461845,114060.0,114050.0,0.3608]
[1759163609835,1.51445845,114060.0,114050.0,0.3608]
[1759163610136,0.71461845,114060.0,114050.0,0.3608]
[1759163610336,1.49870859,114060.0,114050.0,0.3608]
[1759163611339,1.84734048,114060.0,114050.0,0.3608]
[1759163612032,1.80003689,114060.0,114050.0,0.3608]
[1759163613832,0.1226372,114050.0,114040.0,0.3608]
[1759163614026,0.1226425,114040.0,114030.0,0.3608]
[1759163614229,0.9739514,114040.0,114030.0,0.3608]
[1759163614640,0.9739514,114040.0,114030.0,0.70943189]
[1759163615037,0.9729514,114040.0,114030.0,0.70943189]
[1759163615339,0.9729514,114040.0,114030.0,0.3608]
[1759163616038,0.9729514,114040.0,114030.0,0.3668]
[1759163616638,0.9729514,114040.0,114030.0,0.3608]
[1759163616839,0.1731114,114040.0,114030.0,0.3608]
[1759163617039,0.9729514,114040.0,114030.0,0.3608]
[1759163617539,0.9729514,114040.0,114030.0,0.3638]
[1759163618340,0.9729514,114040.0,114030.0,0.71243189]
[1759163619838,0.18888319,114040.0,114030.0,0.71243189]
[1759163620033,0.98872319,114040.0,114030.0,0.71243189]
[1759163621239,0.94141661,114040.0,114030.0,0.71243189]
[1759163622139,0.14157661,114040.0,114030.0,0.71243189]
[1759163622534,0.94141661,114040.0,114030.0,0.71243189]
[1759163623443,0.94145661,114040.0,114030.0,0.71243189]
[1759163623942,0.20463006,114040.0,114030.0,0.71243189]
[1759163624139,1.00447006,114040.0,114030.0,0.3638]
[1759163624437,0.1888275,114040.0,114030.0,0.71243189]
[1759163624740,0.080525,114040.0,114030.0,1.54870398]
[1759163624942,0.09868355,114040.0,114030.0,1.54870398]
[1759163625138,0.09868355,114040.0,114030.0,2.34854398]
[1759163625338,0.05143266,114040.0,114030.0,2.34854398]
[1759163625738,0.07874944,114040.0,114030.0,2.34854398]
[1759163626043,0.05143266,114040.0,114030.0,2.34854398]
[1759163626242,0.13906516,114040.0,114030.0,2.34854398]
[1759163626439,0.05143266,114040.0,114030.0,2.34854398]
[1759163626641,0.13906516,114040.0,114030.0,2.35785767]
[1759163626843,0.13906516,114040.0,114030.0,2.34854398]
[1759163627143,0.05143266,114040.0,114030.0,2.34854398]
[1759163629240,0.01993411,114040.0,114030.0,2.34854398]
[1759163629846,0.01993411,114040.0,114030.0,2.35791569]
[1759163630746,0.01993411,114040.0,114030.0,2.35787569]
[1759163632149,0.01993411,114040.0,114030.0,1.55807569]
[1759163632350,0.01993411,114040.0,114030.0,2.35787569]
[1759163632737,0.0876252,114050.0,114040.0,0.0876248]
[1759163632738,0.087625,114050.0,114040.0,0.0876248]
[1759163632940,0.087625,114050.0,114040.0,0.79705669]
[1759163633148,0.24290781,114060.0,114050.0,0.0876248]
[1759163633340,0.13290021,114060.0,114050.0,1.59681669]
[1759163633650,0.09179944,114060.0,114050.0,1.54568858]
[1759163634037,0.09179944,114060.0,114050.0,2.34544858]
[1759163635252,0.04049855,114060.0,114050.0,2.34544858]
[1759163635949,0.04049855,114060.0,114050.0,1.54568858]
[1759163636151,0.04049855,114060.0,114050.0,2.34540858]
[1759163636950,0.04049855,114060.0,114050.0,1.54568858]
[1759163637151,0.04049855,114060.0,114050.0,2.34540858]
[1759163637645,0.04049855,114060.0,114050.0,1.54568858]
[1759163638146,0.04049855,114060.0,114050.0,2.34536858]
[1759163638543,0.04049855,114060.0,114050.0,1.54568858]
[1759163638745,0.04049855,114060.0,114050.0,2.34536858]
[1759163639351,0.04049855,114060.0,114050.0,1.54568858]
[1759163639547,0.04049855,114060.0,114050.0,2.34536858]
[1759163640050,0.04049855,114060.0,114050.0,2.34532858]
[1759163641653,0.03149855,114060.0,114050.0,1.54568858]
[1759163642048,0.03149855,114060.0,114050.0,2.34532858]
[1759163642650,0.03149855,114060.0,114050.0,2.34528858]
[1759163645044,0.03149855,114060.0,114050.0,2.34524858]
[1759163646454,0.03149855,114060.0,114050.0,1.54568858]
[1759163646655,0.04472855,114060.0,114050.0,2.34520858]
[1759163647150,0.0330315,114060.0,114050.0,2.34520858]
[1759163647953,0.0330315,114060.0,114050.0,1.54568858]
[1759163648358,0.0330315,114060.0,114050.0,2.34520858]
[1759163648757,0.0330315,114060.0,114050.0,1.54568858]
[1759163648951,0.06453005,114060.0,114050.0,2.34520858]
[1759163649148,0.0330315,114060.0,114050.0,2.34520858]
[1759163649458,0.06453005,114060.0,114050.0,1.54568858]
[1759163649650,0.06453005,114060.0,114050.0,2.34516858]
[1759163649854,0.06453005,114060.0,114050.0,1.54568858]
[1759163650149,0.06453005,114060.0,114050.0,2.34516858]
[1759163650456,0.0330315,114060.0,114050.0,2.34516858]
[1759163650656,0.0330315,114060.0,114050.0,1.54568858]
[1759163650958,0.0330315,114060.0,114050.0,2.34516858]
[1759163652757,0.0330315,114060.0,114050.0,1.54568858]
[1759163652957,0.0330315,114060.0,114050.0,2.34512858]
[1759163657558,0.06453005,114060.0,114050.0,2.34512858]
[1759163657958,0.06457005,114060.0,114050.0,2.34512858]
[1759163658462,0.15218715,114060.0,114050.0,1.14568858]
[1759163658659,0.17508715,114060.0,114050.0,0.79705669]
[1759163658851,0.19083949,114060.0,114050.0,1.59645669]
[1759163660264,0.19083949,114060.0,114050.0,1.94509452]
[1759163661272,0.60664205,114060.0,114050.0,1.94509452]
[1759163663560,0.60664205,114060.0,114050.0,1.2478248]
[1759163664068,0.60664205,114060.0,114050.0,1.94509452]
[1759163664365,0.5435886,114060.0,114050.0,0.70943486]
[1759163664563,0.5435886,114060.0,114050.0,1.94505452]
[1759163667469,0.60664205,114060.0,114050.0,1.94505452]
[1759163667865,0.51902495,114060.0,114050.0,1.94505452]
[1759163668371,0.60664205,114060.0,114050.0,1.94505452]
[1759163668770,0.20664205,114060.0,114050.0,1.94505452]
[1759163671166,0.19088552,114060.0,114050.0,1.94505452]
[1759163672474,0.22241627,114060.0,114050.0,1.94505452]
[1759163672668,0.19951627,114060.0,114050.0,1.94505452]
[1759163675070,0.15221935,114060.0,114050.0,1.94505452]
[1759163677577,0.06459923,114060.0,114050.0,1.94505452]
[1759163679880,0.03306848,114060.0,114050.0,1.9923427]
[1759163680378,0.03306848,114060.0,114050.0,1.94505452]
[1759163682581,0.01327,114060.0,114050.0,1.14569452]
[1759163682783,0.01327,114060.0,114050.0,1.94501452]
[1759163684286,4e-05,114060.0,114050.0,2.29364938]
[1759163684475,4e-05,114060.0,114050.0,2.74093756]
[1759163686488,4e-05,114060.0,114050.0,2.69364938]
[1759163687187,0.03126428,114070.0,114060.0,0.0876171]
[1759163687385,0.01790428,114070.0,114060.0,1.49432168]
[1759163687785,0.01790428,114070.0,114060.0,2.29360168]
[1759163688684,0.02390428,114070.0,114060.0,2.29360168]
[1759163689085,0.02690428,114070.0,114060.0,2.29360168]
[1759163689284,0.1008662,114090.0,114080.0,0.0876018]
[1759163689589,0.1008662,114090.0,114080.0,2.30571152]
[1759163689590,0.17867687,114090.0,114080.0,2.30571152]
[1759163691189,0.59846497,114090.0,114080.0,1.50647152]
[1759163691390,0.60446497,114090.0,114080.0,2.30571152]
[1759163691792,0.59846497,114090.0,114080.0,1.50647152]
[1759163691988,0.59846497,114090.0,114080.0,2.30671152]
[1759163692393,0.59845525,114090.0,114080.0,2.30671152]
[1759163692588,0.59845525,114090.0,114080.0,1.50747152]
[1759163692790,0.59845525,114090.0,114080.0,2.30667152]
[1759163692993,0.59845525,114090.0,114080.0,1.50747152]
[1759163693194,0.59845525,114090.0,114080.0,2.30667152]
[1759163693398,0.57867687,114090.0,114080.0,2.30667152]
[1759163693792,0.57867687,114090.0,114080.0,1.50747152]
[1759163693994,0.57867687,114090.0,114080.0,2.30667152]
[1759163694495,0.57867687,114090.0,114080.0,1.50747152]
[1759163694694,0.57867687,114090.0,114080.0,2.30663152]
[1759163695793,0.57867687,114090.0,114080.0,0.8102018]
[1759163695998,0.59985687,114090.0,114080.0,2.30663152]
[1759163697395,0.59985687,114090.0,114080.0,1.50747152]
[1759163697594,0.59985687,114090.0,114080.0,2.30659152]
[1759163697796,0.61962743,114090.0,114080.0,2.30659152]
[1759163697994,0.61962743,114090.0,114080.0,1.50747152]
[1759163698190,0.61962743,114090.0,114080.0,1.41986972]
[1759163698491,0.12063466,114090.0,114080.0,2.65522638]
[1759163698896,0.12063466,114090.0,114080.0,2.30659152]
[1759163699090,0.12063466,114090.0,114080.0,2.65522638]
[1759163700294,0.12962354,114090.0,114080.0,2.30659152]
[1759163700501,0.12962354,114090.0,114080.0,2.30655152]
[1759163700890,0.12962354,114090.0,114080.0,2.65518638]
[1759163702000,0.12063466,114090.0,114080.0,2.65518638]
[1759163704102,0.03304056,114090.0,114080.0,2.65518638]
[1759163704495,0.18776505,114100.0,114090.0,0.0875941]
[1759163704496,0.03086951,114100.0,114090.0,0.0875941]
[1759163704802,0.03086951,114100.0,114090.0,1.14566382]
[1759163705195,0.11845591,114100.0,114090.0,1.14566382]
[1759163706812,0.11845591,114100.0,114090.0,1.49429868]
[1759163707310,0.12345591,114100.0,114090.0,1.49429868]
[1759163708199,0.03586951,114100.0,114090.0,1.49429868]
[1759163709104,0.09203767,114110.0,114100.0,0.0875864]
[1759163709305,0.03153075,114110.0,114100.0,2.29329098]
[1759163709505,0.03153075,114110.0,114100.0,2.29325098]
[1759163709703,0.14875012,114120.0,114110.0,0.0875787]
[1759163709897,0.06117692,114120.0,114110.0,1.49428328]
[1759163710101,0.1014464,114130.0,114120.0,0.0875711]
[1759163710306,0.1014434,114130.0,114120.0,2.29323568]
[1759163710698,0.1014434,114130.0,114120.0,1.49427568]
[1759163710894,0.11898147,114130.0,114120.0,2.29323568]
[1759163711098,0.11898147,114130.0,114120.0,1.49427568]
[1759163711607,0.11898147,114130.0,114120.0,2.29319568]
[1759163711905,0.11898147,114130.0,114120.0,1.49427568]
[1759163712106,0.11898147,114130.0,114120.0,2.29319568]
[1759163712305,0.18203492,114130.0,114120.0,2.29319568]
[1759163712496,0.18203492,114130.0,114120.0,1.49427568]
[1759163712695,0.18203492,114130.0,114120.0,2.29315568]
[1759163712906,0.18203492,114130.0,114120.0,1.49427568]
[1759163713106,0.18203492,114130.0,114120.0,2.29615568]
[1759163713604,0.18203492,114130.0,114120.0,1.06106972]
[1759163713795,0.18203492,114130.0,114120.0,1.94752082]
[1759163713796,0.11898147,114130.0,114120.0,1.94752082]
[1759163714000,0.19784308,114130.0,114120.0,1.94752082]
[1759163714202,0.11898147,114130.0,114120.0,1.94752082]
[1759163714502,0.19784308,114130.0,114120.0,1.94752082]
[1759163714701,0.19784308,114130.0,114120.0,2.29615568]
[1759163715910,0.19784308,114130.0,114120.0,1.94752082]
[1759163717112,0.21902308,114130.0,114120.0,0.4513711]
[1759163717410,0.21902308,114130.0,114120.0,1.14864082]
[1759163717609,0.21902308,114130.0,114120.0,1.94744082]
[1759163719013,0.14016147,114130.0,114120.0,1.94744082]
[1759163719413,0.14016147,114130.0,114120.0,1.14864082]
[1759163719712,0.14016147,114130.0,114120.0,1.94740082]
[1759163720215,0.14016147,114130.0,114120.0,1.14864082]
[1759163720515,0.14016147,114130.0,114120.0,1.85982972]
[1759163720810,0.14016147,114130.0,114120.0,1.51119486]
[1759163720811,0.48879633,114130.0,114120.0,1.51119486]
[1759163721016,0.95173768,114130.0,114120.0,1.85982972]
[1759163721211,0.54016147,114130.0,114120.0,1.85982972]
[1759163721513,0.60310282,114130.0,114120.0,1.86330972]
[1759163722215,0.60310282,114130.0,114120.0,1.51429061]
[1759163723114,0.60310282,114130.0,114120.0,0.71209061]
[1759163723311,0.60310282,114130.0,114120.0,0.3638]
[1759163723517,0.95139343,114130.0,114120.0,0.3638]
[1759163724114,0.60310282,114130.0,114120.0,0.3638]
[1759163725215,0.57810282,114130.0,114120.0,0.3638]
[1759163725414,0.59199282,114130.0,114120.0,0.3638]
[1759163726918,0.94028343,114130.0,114120.0,0.3638]
[1759163727411,1.39447282,114130.0,114120.0,0.3638]
[1759163727620,1.74268343,114130.0,114120.0,0.3638]
[1759163727916,1.39439282,114130.0,114120.0,0.003]
[1759163728118,0.94028343,114130.0,114120.0,0.003]
[1759163728318,1.23814208,114130.0,114120.0,0.003]
[1759163728615,1.31700369,114130.0,114120.0,0.003]
[1759163729010,2.11956369,114130.0,114120.0,0.003]
[1759163729614,2.11952369,114130.0,114120.0,0.003]
[1759163730513,0.1226087,114110.0,114100.0,0.70909061]
[1759163730714,1.29102668,114110.0,114100.0,0.3608]
[1759163731013,0.1226164,114100.0,114090.0,0.70909061]
[1759163732413,0.18328191,114100.0,114090.0,0.70909061]
[1759163732916,0.18228191,114100.0,114090.0,0.70909061]
[1759163733419,0.19125887,114100.0,114090.0,0.72309061]
[1759163733613,0.19125887,114100.0,114090.0,0.71309061]
[1759163744515,0.19125887,114100.0,114090.0,0.3648]
[1759163744722,0.19125887,114100.0,114090.0,0.71309061]
[1759163747916,0.53954948,114100.0,114090.0,0.3648]
[1759163748321,0.99253887,114100.0,114090.0,0.3648]
[1759163749025,0.99253887,114100.0,114090.0,0.71309061]
[1759163751227,1.02401315,114100.0,114090.0,0.71309061]
[1759163752725,1.02401315,114100.0,114090.0,0.3648]
[1759163753226,0.22273315,114100.0,114090.0,0.3648]
[1759163753427,1.02365315,114100.0,114090.0,0.3648]
[1759163754229,0.99217887,114100.0,114090.0,0.3648]
[1759163757420,1.03940975,114100.0,114090.0,0.004]
[1759163758524,1.38770036,114100.0,114090.0,0.004]
[1759163759235,1.03940975,114100.0,114090.0,0.004]
[1759163761338,1.02372768,114100.0,114090.0,0.004]
[1759163762434,0.22280768,114100.0,114090.0,0.004]
[1759163762630,1.02344768,114100.0,114090.0,0.004]
[1759163765934,1.37173829,114100.0,114090.0,0.004]
[1759163766338,1.02344768,114100.0,114090.0,0.004]
[1759163766547,1.07067856,114100.0,114090.0,0.004]
[1759163766840,1.02344768,114100.0,114090.0,0.004]
[1759163767633,1.02320768,114100.0,114090.0,0.004]
[1759163767828,1.02352768,114100.0,114090.0,0.004]
[1759163768034,0.22280768,114100.0,114090.0,0.004]
[1759163768534,1.02372768,114100.0,114090.0,0.004]
[1759163769241,1.02364768,114100.0,114090.0,0.004]
[1759163770842,1.37193829,114100.0,114090.0,0.004]
[1759163771045,1.41916917,114100.0,114090.0,0.004]
[1759163771240,1.74842036,114100.0,114090.0,0.004]
[1759163774446,2.14842036,114100.0,114090.0,0.004]
[1759163775251,1.34758036,114100.0,114090.0,0.004]
[1759163775744,2.14882036,114100.0,114090.0,0.004]
[1759163776146,2.14882036,114100.0,114090.0,0.00395]
[1759163777448,2.14862036,114100.0,114090.0,0.00395]
[1759163779854,2.14842036,114100.0,114090.0,0.00395]
[1759163780948,0.1220318,114080.0,114070.0,0.3608]
[1759163781153,1.28876337,114080.0,114070.0,0.3608]
[1759163782253,1.28876337,114080.0,114070.0,0.3758]
[1759163782648,0.48804337,114080.0,114070.0,0.3758]
[1759163782848,1.28888337,114080.0,114070.0,0.3758]
[1759163783854,1.28888337,114080.0,114070.0,0.3608]
[1759163784056,1.28888337,114080.0,114070.0,0.3678]
[1759163784256,1.28925729,114080.0,114070.0,0.71646453]
[1759163785058,1.28913729,114080.0,114070.0,0.71646453]
[1759163785355,1.28909729,114080.0,114070.0,0.71646453]
[1759163785548,0.13975276,114080.0,114070.0,0.71646453]
[1759163785753,1.28905729,114080.0,114070.0,0.71646453]
[1759163786464,1.28909729,114080.0,114070.0,0.71646453]
[1759163788459,1.28909729,114080.0,114070.0,0.3678]
[1759163788852,1.28909729,114080.0,114070.0,0.71646453]
[1759163789356,0.48841729,114080.0,114070.0,0.71646453]
[1759163789560,1.28885729,114080.0,114070.0,0.71646453]
[1759163790456,1.36770589,114080.0,114070.0,0.71646453]
[1759163791055,1.36770589,114080.0,114070.0,0.3678]
[1759163791263,1.71637042,114080.0,114070.0,0.007]
[1759163791450,1.71645042,114080.0,114070.0,0.007]
[1759163791653,2.47725042,114080.0,114070.0,0.007]
[1759163791853,2.44571098,114080.0,114070.0,0.007]
[1759163792262,2.47722088,114080.0,114070.0,0.007]
[1759163792454,2.44571098,114080.0,114070.0,0.007]
[1759163793150,0.1090794,114070.0,114060.0,0.3608]
[1759163793354,0.50220531,114070.0,114060.0,0.3608]
[1759163793961,1.30268531,114070.0,114060.0,0.3608]
[1759163794262,0.50220531,114070.0,114060.0,0.3608]
[1759163794562,1.30284531,114070.0,114060.0,0.3758]
[1759163794755,1.30284531,114070.0,114060.0,0.3858]
[1759163796054,0.50220531,114070.0,114060.0,0.3858]
[1759163796260,1.27130393,114070.0,114060.0,0.3858]
[1759163797366,1.27126393,114070.0,114060.0,0.3858]
[1759163798767,0.47070393,114070.0,114060.0,0.3858]
[1759163798968,0.1220394,114070.0,114060.0,0.73446453]
[1759163799262,0.1220394,114070.0,114060.0,0.74450453]
[1759163799468,0.47070393,114070.0,114060.0,0.74450453]
[1759163799666,1.27114393,114070.0,114060.0,0.74450453]
[1759163800268,0.47070393,114070.0,114060.0,0.74450453]
[1759163800468,1.27106393,114070.0,114060.0,0.74450453]
[1759163800667,0.50220531,114070.0,114060.0,0.74450453]
[1759163800968,1.30252531,114070.0,114060.0,0.74450453]
[1759163801362,1.31833309,114070.0,114060.0,0.74450453]
[1759163802368,0.51801309,114070.0,114060.0,0.74450453]
[1759163802567,1.31833309,114070.0,114060.0,0.74450453]
[1759163802769,1.31817309,114070.0,114060.0,0.74450453]
[1759163802963,1.31817309,114070.0,114060.0,0.73446453]
[1759163803568,1.31817309,114070.0,114060.0,0.3858]
[1759163804668,1.31817309,114070.0,114060.0,0.73446453]
[1759163804962,1.31817309,114070.0,114060.0,0.3858]
[1759163805164,1.31817309,114070.0,114060.0,0.025]
[1759163807469,1.31821309,114070.0,114060.0,0.025]
[1759163807669,1.31805309,114070.0,114060.0,0.025]
[1759163810673,1.31777309,114070.0,114060.0,0.025]
[1759163810872,0.51801309,114070.0,114060.0,0.025]
[1759163811077,1.31777309,114070.0,114060.0,0.025]
[1759163811278,1.3019424,114070.0,114060.0,0.025]
[1759163811673,0.47070393,114070.0,114060.0,0.025]
[1759163811872,1.27054393,114070.0,114060.0,0.025]
[1759163812778,0.47070393,114070.0,114060.0,0.025]
[1759163813179,0.47070393,114070.0,114060.0,0.38370453]
[1759163813574,1.27046393,114070.0,114060.0,0.74450453]
[1759163813975,1.27046393,114070.0,114060.0,0.39584]
[1759163814281,1.27042393,114070.0,114060.0,0.74450453]
[1759163814480,0.47070393,114070.0,114060.0,0.74450453]
[1759163814682,1.27042393,114070.0,114060.0,0.74450453]
[1759163814976,1.27042393,114070.0,114060.0,0.39584]
[1759163815277,1.27042393,114070.0,114060.0,0.74450453]
[1759163816985,1.27042393,114070.0,114060.0,0.3858]
[1759163817185,1.97988846,114070.0,114060.0,0.025]
[1759163817572,1.65103203,114070.0,114060.0,0.025]
[1759163817777,1.69834119,114070.0,114060.0,0.025]
[1759163817977,1.72984587,114070.0,114060.0,0.03504]
[1759163818782,1.72984587,114070.0,114060.0,0.025]
[1759163819174,1.69834119,114070.0,114060.0,0.025]
[1759163820182,1.33754119,114070.0,114060.0,0.025]
[1759163822792,1.33754119,114070.0,114060.0,0.37366453]
[1759163823384,1.33754119,114070.0,114060.0,0.025]
[1759163823589,1.33754119,114070.0,114060.0,0.37366453]
[1759163823887,0.98887666,114070.0,114060.0,0.37366453]
[1759163824088,0.18915666,114070.0,114060.0,0.38370453]
[1759163824294,1.33754119,114070.0,114060.0,0.38370453]
[1759163825798,1.33754119,114070.0,114060.0,0.37366453]
[1759163826601,1.33754119,114070.0,114060.0,0.025]
[1759163826802,1.33754119,114070.0,114060.0,0.37366453]
[1759163827490,1.33754119,114070.0,114060.0,0.38370453]
[1759163828307,0.98887666,114070.0,114060.0,0.38370453]
[1759163828607,1.33754119,114070.0,114060.0,0.38370453]
[1759163830300,0.98887666,114070.0,114060.0,0.38370453]
[1759163830608,1.33754119,114070.0,114060.0,0.38370453]
[1759163833309,0.53782119,114070.0,114060.0,0.38370453]
[1759163833610,1.33758119,114070.0,114060.0,0.38370453]
[1759163834902,1.33758119,114070.0,114060.0,0.37366453]
[1759163836099,1.33758119,114070.0,114060.0,0.38370453]
[1759163836305,1.33758119,114070.0,114060.0,0.03504]
[1759163836507,1.33758119,114070.0,114060.0,0.38370453]
[1759163836811,1.33758119,114070.0,114060.0,0.74450453]
[1759163837003,1.36913713,114070.0,114060.0,0.74450453]
[1759163837709,1.33758119,114070.0,114060.0,0.39584]
[1759163837913,1.36913584,114070.0,114060.0,0.74450453]
[1759163838411,1.33758119,114070.0,114060.0,0.74450453]
[1759163839004,0.53782119,114070.0,114060.0,0.74450453]
[1759163839204,1.33758119,114070.0,114060.0,0.74450453]
[1759163841312,1.29027203,114070.0,114060.0,0.74450453]
[1759163842712,1.29027203,114070.0,114060.0,0.38370453]
[1759163843512,1.29027203,114070.0,114060.0,0.03504]
[1759163843708,0.9416075,114070.0,114060.0,0.38370453]
[1759163844012,1.29027203,114070.0,114060.0,0.38370453]
[1759163844208,0.9416075,114070.0,114060.0,0.03504]
[1759163844413,0.9416075,114070.0,114060.0,0.025]
[1759163846320,1.00457774,114070.0,114060.0,0.025]
[1759163848010,1.65111002,114070.0,114060.0,0.025]
[1759163848201,1.71408026,114070.0,114060.0,0.025]
[1759163850813,1.65111002,114070.0,114060.0,0.025]
[1759163851408,1.6984403,114070.0,114060.0,0.025]
[1759163856017,0.8986803,114070.0,114060.0,0.025]
[1759163856217,1.6984403,114070.0,114060.0,0.025]
[1759163857217,0.8986803,114070.0,114060.0,0.025]
[1759163857519,1.6984003,114070.0,114060.0,0.025]
[1759163858216,1.34969778,114070.0,114060.0,0.03504]
[1759163858412,0.85135002,114070.0,114060.0,0.01004]
[1759163858614,1.65107002,114070.0,114060.0,0.01004]
[1759163858809,0.0876168,114060.0,114050.0,0.35874252]